bitfinex-derivatives/quotes_ETHF0:USTF0_20260119
["timestamp","ask_amount","ask_price","bid_price","bid_amount"]
[1768851976883,0.00225626,3220.5,3219.0,0.13916909]
[1768851977072,0.85714421,3220.4,3219.0,0.13916909]
[1768851977272,0.85714421,3220.3,3219.0,0.13916909]
[1768851977471,0.00225626,3220.5,3219.0,0.13916909]
[1768851977676,0.85714777,3220.4,3219.0,0.13916909]
[1768851977881,0.85714777,3220.3,3219.0,0.13916909]
[1768851978079,0.85714777,3220.3,3218.9,0.15822227]
[1768851978080,0.00225626,3220.5,3219.2,0.13916909]
[1768851978281,0.00225626,3220.5,3219.2,0.29456909]
[1768851978482,0.00225626,3220.5,3219.4,0.13916909]
[1768851980878,0.00225626,3220.5,3219.3,0.15539]
[1768851981086,0.00225626,3220.5,3218.9,0.14198136]
[1768851989994,0.00225626,3220.5,3219.0,0.13166121]
[1768851991884,1.28741219,3220.3,3219.0,0.13166121]
[1768851993394,0.00225626,3220.5,3219.0,0.13166121]
[1768851998701,0.00225626,3220.5,3219.2,0.13166121]
[1768852001196,0.85992894,3220.4,3219.2,0.13166121]
[1768852001396,0.00225626,3220.5,3219.2,0.13166121]
[1768852001597,0.85994286,3220.4,3219.2,0.13166121]
[1768852001796,0.00225626,3220.5,3219.2,0.13166121]
[1768852001998,0.85994306,3220.4,3219.2,0.13166121]
[1768852002295,0.00225626,3220.5,3219.2,0.13166121]
[1768852002497,0.86003596,3220.4,3219.2,0.13166121]
[1768852002698,0.00225626,3220.5,3219.2,0.13166121]
[1768852002998,0.86003596,3220.4,3219.2,0.13166121]
[1768852003200,0.00225626,3220.5,3219.2,0.13166121]
[1768852003409,0.8601436,3220.4,3219.2,0.13166121]
[1768852003610,0.00225626,3220.5,3219.2,0.13166121]
[1768852003810,0.86014353,3220.4,3219.2,0.13166121]
[1768852004009,0.00225626,3220.5,3219.2,0.13166121]
[1768852004214,0.86014243,3220.4,3219.2,0.13166121]
[1768852004408,0.00225626,3220.5,3219.2,0.13166121]
[1768852005212,0.86034325,3220.4,3219.2,0.13166121]
[1768852005413,0.00225626,3220.5,3219.2,0.13166121]
[1768852005614,0.86034327,3220.4,3219.2,0.13166121]
[1768852005815,0.00225626,3220.5,3219.2,0.13166121]
[1768852006015,0.86034349,3220.4,3219.2,0.13166121]
[1768852006314,0.00225626,3220.5,3219.2,0.13166121]
[1768852006516,0.86049731,3220.4,3219.2,0.13166121]
[1768852006707,0.00225626,3220.5,3219.2,0.13166121]
[1768852006906,0.86049743,3220.4,3219.2,0.13166121]
[1768852007108,0.00225626,3220.5,3219.2,0.28706121]
[1768852007416,0.00225626,3220.5,3219.3,0.1423107]
[1768852008920,0.00225626,3220.5,3219.3,0.2977007]
[1768852010522,0.00225626,3220.5,3219.4,0.1423107]
[1768852012021,0.00225626,3220.5,3219.4,0.2977007]
[1768852012519,0.00225626,3220.5,3219.5,0.1423107]
[1768852013923,0.00225626,3220.5,3219.5,0.2976907]
[1768852014624,0.00225626,3220.5,3219.6,0.13783171]
[1768852017525,0.00225626,3220.5,3219.6,0.29321171]
[1768852017729,0.00225626,3220.5,3219.7,0.13783171]
[1768852022932,1.742,3221.0,3219.8,0.13783171]
[1768852023130,0.86050969,3220.9,3219.8,0.13783171]
[1768852023334,0.86050969,3220.8,3219.8,0.13783171]
[1768852023634,1.742,3221.0,3219.8,0.13783171]
[1768852023833,0.86042436,3220.9,3219.8,0.13783171]
[1768852024035,0.86042436,3220.8,3219.8,0.13783171]
[1768852024235,0.00389702,3221.0,3219.8,0.13783171]
[1768852024436,0.86035993,3220.9,3219.8,0.13783171]
[1768852024622,0.86035993,3220.8,3219.8,0.13783171]
[1768852024821,0.00389702,3221.0,3219.8,0.13783171]
[1768852025027,0.86035505,3220.9,3219.8,0.13783171]
[1768852025227,0.86035505,3220.8,3219.8,0.13783171]
[1768852025426,0.00389702,3221.0,3219.8,0.13783171]
[1768852025629,0.86030477,3220.9,3219.8,0.13783171]
[1768852025941,0.86030477,3220.8,3219.8,0.13783171]
[1768852026128,0.00389702,3221.0,3219.8,0.13783171]
[1768852026330,0.86026909,3220.9,3219.8,0.13783171]
[1768852026530,0.86026909,3220.8,3219.8,0.13783171]
[1768852026731,0.00389702,3221.0,3219.8,0.13783171]
[1768852026934,0.8602691,3220.9,3219.8,0.13783171]
[1768852027132,0.8602691,3220.8,3219.8,0.13783171]
[1768852027333,0.00389702,3221.0,3219.8,0.13783171]
[1768852027540,0.86024599,3220.9,3219.8,0.13783171]
[1768852027733,0.86024599,3220.8,3219.8,0.13783171]
[1768852027934,0.00389702,3221.0,3219.8,0.13783171]
[1768852028134,0.86024617,3220.9,3219.8,0.13783171]
[1768852028339,0.86024617,3220.8,3219.8,0.13783171]
[1768852028542,0.00389702,3221.0,3219.8,0.13783171]
[1768852028839,0.00389702,3221.0,3220.0,0.13783171]
[1768852029040,0.00389702,3221.0,3220.0,0.29319171]
[1768852029242,0.00389702,3221.0,3220.1,0.13783171]
[1768852030139,0.00389702,3221.0,3220.1,0.29318171]
[1768852030343,0.00389702,3221.0,3220.2,0.13783171]
[1768852035434,0.00389702,3221.0,3220.1,0.15535]
[1768852039045,1.29069274,3221.0,3220.1,0.15535]
[1768852041649,1.29069274,3221.0,3219.8,0.13783171]
[1768852045949,1.29069274,3221.0,3219.9,0.13317465]
[1768852058253,1.29069274,3221.0,3219.9,0.28853465]
[1768852061654,1.28679572,3220.4,3219.4,4.05099637]
[1768852061849,1.28679572,3220.4,3219.4,0.15539]
[1768852062051,1.28679572,3219.9,3219.2,0.13753857]
[1768852062245,1.28679572,3220.1,3219.2,0.13753857]
[1768852069765,1.28679572,3220.1,3219.0,0.15541]
[1768852070570,1.28679572,3219.9,3219.0,0.15541]
[1768852074171,1.28679572,3220.1,3219.0,0.15541]
[1768852078277,1.28679572,3219.9,3219.0,0.15541]
[1768852081383,1.28679572,3220.1,3219.0,0.15541]
[1768852081577,1.28679572,3220.1,3219.1,0.1554]
[1768852084285,1.28679572,3219.9,3219.1,0.1554]
[1768852094685,1.28679572,3219.5,3218.9,0.00281227]
[1768852095487,1.28679572,3219.1,3218.1,3.89560637]
[1768852095675,1.28679572,3218.9,3218.0,0.13072341]
[1768852096580,1.28679572,3218.9,3218.2,0.15545]
[1768852098484,1.28679572,3219.1,3218.2,0.15545]
[1768852098895,1.43073386,3219.6,3218.2,0.15545]
[1768852100789,1.67125492,3220.3,3218.3,0.13072341]
[1768852100996,0.88177122,3220.2,3219.1,1.44370923]
[1768852101294,0.14242463,3220.4,3219.1,0.1554]
[1768852101479,1.02411151,3220.3,3219.1,0.1554]
[1768852101682,0.88168688,3220.2,3219.1,0.1554]
[1768852101881,0.14242463,3220.7,3219.1,0.1554]
[1768852102090,0.88167963,3220.6,3219.1,0.1554]
[1768852102392,0.88167963,3220.5,3219.1,0.1554]
[1768852102586,0.88167963,3220.4,3219.1,0.1554]
[1768852102793,0.88167963,3220.3,3219.1,0.1554]
[1768852102990,0.14242463,3220.7,3219.1,0.1554]
[1768852103294,0.88172035,3220.6,3219.1,0.1554]
[1768852103490,0.88172035,3220.5,3219.1,0.1554]
[1768852103692,0.88172035,3220.4,3219.1,0.1554]
[1768852103893,0.88172035,3220.3,3219.1,0.1554]
[1768852104086,0.14242463,3220.7,3219.1,0.1554]
[1768852104286,0.88165259,3220.6,3219.1,0.1554]
[1768852104487,0.88165259,3220.5,3219.1,0.1554]
[1768852104783,0.88165259,3220.4,3219.1,0.1554]
[1768852104987,0.14242463,3220.7,3219.1,0.1554]
[1768852105186,0.88165934,3220.6,3219.1,0.29378308]
[1768852105386,0.88165934,3220.5,3219.1,0.29378308]
[1768852105590,0.88165934,3220.4,3219.1,0.29378308]
[1768852105892,0.00389702,3221.0,3219.6,0.13838308]
[1768852106294,0.00389702,3221.0,3219.8,0.15537]
[1768852115501,0.00389702,3221.0,3219.8,0.29375308]
[1768852117908,0.00389702,3221.0,3219.9,0.29374308]
[1768852118107,0.00389702,3221.0,3220.0,0.13838308]
[1768852134716,0.00389702,3221.0,3219.4,0.15539]
[1768852134717,1.28830923,3220.7,3219.4,0.15539]
[1768852135210,0.88293759,3220.6,3219.4,0.15539]
[1768852135413,1.28830923,3220.7,3219.4,0.15539]
[1768852135613,0.88293748,3220.6,3219.4,0.15539]
[1768852135820,0.00389702,3221.0,3219.5,0.13495739]
[1768852136019,0.88293649,3220.9,3219.5,0.13495739]
[1768852136218,0.88293649,3220.8,3219.5,0.13495739]
[1768852136421,0.88293649,3220.7,3219.5,0.13495739]
[1768852136618,0.88293649,3220.6,3219.5,0.13495739]
[1768852136819,0.00389702,3221.0,3219.5,0.13495739]
[1768852137118,0.88283511,3220.9,3219.5,0.13495739]
[1768852137319,0.88283511,3220.8,3219.5,0.13495739]
[1768852137622,0.88283511,3220.7,3219.5,0.13495739]
[1768852137824,0.00389702,3221.0,3219.5,0.13495739]
[1768852138014,0.88271228,3220.9,3219.5,0.13495739]
[1768852138215,0.88271228,3220.8,3219.5,0.13495739]
[1768852138523,0.88271228,3220.7,3219.5,0.13495739]
[1768852138724,0.00389702,3221.0,3219.5,0.13495739]
[1768852138921,0.88261587,3220.9,3219.5,0.13495739]
[1768852139119,0.88261587,3220.8,3219.5,0.13495739]
[1768852139319,0.88261587,3220.7,3219.5,0.13495739]
[1768852139516,0.00389702,3221.0,3219.5,0.13495739]
[1768852139722,0.88253646,3220.9,3219.5,0.13495739]
[1768852140027,0.88253646,3220.8,3219.6,0.13495739]
[1768852140322,0.88253646,3220.7,3219.6,0.13495739]
[1768852140525,1.29220625,3221.0,3219.6,0.13495739]
[1768852140725,0.88252297,3220.9,3219.6,0.13495739]
[1768852141024,0.88252297,3220.8,3219.6,0.13495739]
[1768852141211,0.88252297,3220.7,3219.6,0.13495739]
[1768852141415,1.29220625,3221.0,3219.6,0.13495739]
[1768852141624,0.88245536,3220.9,3219.6,0.13495739]
[1768852141811,0.88245536,3220.8,3219.6,0.13495739]
[1768852142016,0.88245536,3220.7,3219.6,0.13495739]
[1768852142223,1.29220625,3221.0,3219.6,0.13495739]
[1768852142423,0.88244181,3220.9,3219.6,0.13495739]
[1768852142623,1.29220625,3221.0,3219.6,0.13495739]
[1768852142624,0.88244181,3220.8,3219.6,0.13495739]
[1768852142824,0.88244181,3220.7,3219.6,0.13495739]
[1768852143030,1.29220625,3221.0,3219.6,0.13495739]
[1768852143221,0.88238924,3220.9,3219.6,0.13495739]
[1768852143420,1.29220625,3221.0,3219.6,0.13495739]
[1768852143421,0.88238924,3220.8,3219.6,0.13495739]
[1768852143622,0.88238924,3220.7,3219.6,0.13495739]
[1768852143823,1.29220625,3221.0,3219.6,0.13495739]
[1768852144023,0.88235908,3220.9,3219.6,0.13495739]
[1768852144222,0.88235908,3220.8,3219.6,0.13495739]
[1768852144423,0.88235908,3220.7,3219.6,0.13495739]
[1768852144724,0.00389702,3221.0,3219.6,0.13495739]
[1768852144923,0.88232413,3220.9,3219.6,0.13495739]
[1768852145128,0.88232413,3220.8,3219.6,0.13495739]
[1768852145326,0.88232413,3220.7,3219.6,0.13495739]
[1768852145626,0.00389702,3221.0,3219.6,0.13495739]
[1768852145833,0.88229487,3220.9,3219.8,0.13495739]
[1768852146129,0.00389702,3221.0,3219.9,0.13495739]
[1768852146329,0.88222092,3220.9,3219.9,0.13495739]
[1768852146518,0.00389702,3221.0,3219.9,0.13495739]
[1768852146720,0.8822301,3220.9,3219.9,0.13495739]
[1768852146930,0.00389702,3221.0,3219.9,0.29031739]
[1768852147134,0.00389702,3221.0,3220.0,0.13495739]
[1768852157231,0.00389702,3221.0,3220.0,0.29031739]
[1768852157439,0.00389702,3221.0,3220.2,0.13495739]
[1768852159534,3.41125492,3221.7,3220.2,0.13495739]
[1768852159740,0.88208492,3221.6,3220.2,0.13495739]
[1768852160036,0.88208492,3221.5,3220.2,0.13495739]
[1768852160228,0.88208492,3221.4,3220.2,0.13495739]
[1768852160430,0.88208492,3221.3,3220.2,0.13495739]
[1768852160630,0.00370961,3221.3,3220.2,0.13495739]
[1768852160832,0.00370961,3221.3,3220.2,1.42135407]
[1768852161038,0.00370961,3221.3,3220.3,0.13495739]
[1768852161238,0.00370961,3221.3,3220.3,0.13784241]
[1768852162144,1.29010629,3221.3,3220.3,0.13784241]
[1768852163443,0.00370961,3221.3,3220.3,0.13784241]
[1768852165739,0.00370961,3221.3,3220.5,0.13987256]
[1768852170142,0.00370961,3221.3,3220.5,0.29520256]
[1768852170348,0.00370961,3221.3,3220.6,0.13987256]
[1768852181760,0.00370961,3221.3,3220.3,0.00288502]
[1768852185370,0.8798831,3221.2,3220.3,0.00288502]
[1768852185561,0.8798831,3221.1,3220.3,0.00288502]
[1768852185762,0.8798831,3221.0,3220.3,0.00288502]
[1768852185963,0.8798831,3220.9,3220.3,0.00288502]
[1768852186173,0.00370961,3221.3,3220.3,0.00288502]
[1768852186365,0.87999347,3221.2,3220.3,0.00288502]
[1768852186570,0.87999347,3221.1,3220.3,0.00288502]
[1768852186872,0.87999347,3221.0,3220.3,0.00288502]
[1768852187061,0.87999347,3220.9,3220.3,0.00288502]
[1768852187268,0.00370961,3221.3,3220.3,0.00288502]
[1768852187568,0.87983257,3221.2,3220.3,0.00288502]
[1768852187769,0.87983257,3221.1,3220.3,0.00288502]
[1768852188067,0.87983257,3221.0,3220.3,0.00288502]
[1768852188261,0.00370961,3221.3,3220.3,0.00288502]
[1768852188566,0.8797253,3221.2,3220.3,0.00288502]
[1768852188766,0.8797253,3221.1,3220.3,0.00288502]
[1768852188964,0.8797253,3221.0,3220.3,0.00288502]
[1768852189174,0.00370961,3221.3,3220.3,0.00288502]
[1768852189375,0.87972577,3221.2,3220.3,0.00288502]
[1768852189582,0.87972577,3221.1,3220.3,0.00288502]
[1768852189874,0.87972577,3221.0,3220.3,0.00288502]
[1768852190064,0.00370961,3221.3,3220.3,0.00288502]
[1768852190265,0.87962521,3221.2,3220.3,0.00288502]
[1768852190466,0.87962521,3221.1,3220.3,0.00288502]
[1768852190661,0.87962521,3221.0,3220.3,0.00288502]
[1768852190871,0.00370961,3221.3,3220.3,0.00288502]
[1768852191072,0.8795194,3221.2,3220.3,0.00288502]
[1768852191269,0.8795194,3221.1,3220.3,0.00288502]
[1768852191469,0.8795194,3221.0,3220.3,0.00288502]
[1768852191670,0.00370961,3221.3,3220.3,0.00288502]
[1768852191866,0.8794232,3221.2,3220.3,0.00288502]
[1768852192078,0.8794232,3221.1,3220.3,0.00288502]
[1768852192278,0.8794232,3221.0,3220.3,0.00288502]
[1768852192474,0.00370961,3221.3,3220.3,0.00288502]
[1768852192675,0.87933832,3221.2,3220.3,0.00288502]
[1768852192876,0.87933832,3221.1,3220.3,0.00288502]
[1768852193075,0.87933832,3221.0,3220.3,0.00288502]
[1768852193271,0.00370961,3221.3,3220.3,0.00288502]
[1768852193571,0.87929625,3221.2,3220.3,0.00288502]
[1768852193766,0.87929625,3221.1,3220.3,0.00288502]
[1768852193974,0.87929625,3221.0,3220.3,0.00288502]
[1768852194174,0.00370961,3221.3,3220.3,0.00288502]
[1768852194378,0.87938028,3221.2,3220.3,0.00288502]
[1768852194575,0.87938028,3221.1,3220.3,0.00288502]
[1768852194780,0.00370961,3221.3,3220.3,0.00288502]
[1768852194981,0.87929681,3221.2,3220.3,0.00288502]
[1768852195170,0.87929681,3221.1,3220.3,0.00288502]
[1768852195374,0.00370961,3221.3,3220.3,0.00288502]
[1768852195575,0.87923759,3221.2,3220.3,0.00288502]
[1768852195779,0.87923759,3221.1,3220.3,0.00288502]
[1768852195981,0.00370961,3221.3,3220.3,0.00288502]
[1768852196181,0.8792374,3221.2,3220.3,0.00288502]
[1768852196385,0.8792374,3221.1,3220.3,0.00288502]
[1768852196589,0.00370961,3221.3,3220.3,0.14144194]
[1768852200387,0.00370961,3221.3,3220.3,0.00288502]
[1768852201094,0.8792219,3221.2,3220.3,0.00288502]
[1768852201295,0.87927986,3221.1,3220.3,0.00288502]
[1768852201493,0.00370961,3221.3,3220.3,0.00288502]
[1768852201695,0.87930968,3221.2,3220.3,0.00288502]
[1768852201894,0.87930968,3221.1,3220.3,0.00288502]
[1768852202195,0.00370961,3221.3,3220.3,0.00288502]
[1768852202392,0.87932847,3221.2,3220.3,0.00288502]
[1768852202689,0.87932847,3221.1,3220.3,0.00288502]
[1768852202896,0.00370961,3221.3,3220.3,0.00288502]
[1768852203094,0.87936946,3221.2,3220.3,0.00288502]
[1768852203400,0.87936946,3221.1,3220.3,0.00288502]
[1768852203693,0.00370961,3221.3,3220.3,0.00288502]
[1768852203897,0.87944706,3221.2,3220.3,0.00288502]
[1768852204096,0.87944706,3221.1,3220.3,0.00288502]
[1768852204288,0.00370961,3221.3,3220.3,0.00288502]
[1768852204489,0.87954125,3221.2,3220.3,0.00288502]
[1768852204684,0.87954125,3221.1,3220.3,0.00288502]
[1768852204882,0.00370961,3221.3,3220.3,0.00288502]
[1768852205087,0.87954127,3221.2,3220.3,0.00288502]
[1768852205283,0.87954127,3221.1,3220.3,0.00288502]
[1768852205488,0.00370961,3221.3,3220.3,0.00288502]
[1768852205689,0.879642,3221.2,3220.3,0.00288502]
[1768852205997,0.879642,3221.1,3220.3,0.00288502]
[1768852206191,0.00370961,3221.3,3220.3,0.00288502]
[1768852206391,0.87966591,3221.2,3220.3,0.00288502]
[1768852206599,0.87966591,3221.1,3220.3,0.00288502]
[1768852206800,0.00370961,3221.3,3220.3,0.00288502]
[1768852206993,0.87974739,3221.2,3220.3,0.00288502]
[1768852207193,0.87974739,3221.1,3220.3,0.00288502]
[1768852207391,0.00370961,3221.3,3220.3,0.00288502]
[1768852207593,0.87985958,3221.2,3220.3,0.00288502]
[1768852207792,0.87985958,3221.1,3220.3,0.00288502]
[1768852208001,0.00370961,3221.3,3220.3,0.00288502]
[1768852208191,0.87985953,3221.2,3220.3,0.00288502]
[1768852208392,0.87985953,3221.1,3220.3,0.00288502]
[1768852208592,0.00370961,3221.3,3220.3,0.00288502]
[1768852208794,0.87999432,3221.2,3220.3,0.00288502]
[1768852208997,0.00370961,3221.3,3220.3,0.00288502]
[1768852208998,0.87999432,3221.1,3220.3,0.00288502]
[1768852209204,0.87999432,3221.0,3220.3,0.00288502]
[1768852209499,0.88016917,3220.9,3219.5,0.13855692]
[1768852209799,0.13963795,3220.7,3219.1,0.13855692]
[1768852210112,0.88016917,3220.6,3219.1,0.13855692]
[1768852210398,0.88016917,3220.6,3219.1,0.14143112]
[1768852211503,1.01980712,3220.6,3219.1,0.14143112]
[1768852211802,0.88016917,3220.5,3219.1,0.14143112]
[1768852212006,0.88016917,3220.4,3219.1,0.14143112]
[1768852212302,0.88016917,3220.3,3219.1,0.14143112]
[1768852212496,0.13963795,3220.6,3219.1,0.14143112]
[1768852212696,0.87979394,3220.5,3219.1,0.14143112]
[1768852212901,0.87979394,3220.4,3219.1,0.14143112]
[1768852213104,0.87979394,3220.3,3219.1,0.14143112]
[1768852213304,0.13963795,3220.6,3219.1,0.14143112]
[1768852213505,0.87957644,3220.5,3219.1,0.14143112]
[1768852213802,0.87957644,3220.4,3219.1,0.14143112]
[1768852214101,0.87957649,3220.3,3219.1,0.14143112]
[1768852214303,0.13963795,3220.6,3219.1,0.14143112]
[1768852214502,0.87941021,3220.5,3219.1,0.14143112]
[1768852214702,0.87941021,3220.4,3219.1,0.14143112]
[1768852214903,0.13963795,3220.6,3219.1,0.14143112]
[1768852215202,0.87941021,3220.5,3219.1,0.14143112]
[1768852215402,0.87941021,3220.4,3219.1,0.14143112]
[1768852215598,0.13963795,3220.6,3219.1,0.14143112]
[1768852215794,0.87928654,3220.5,3219.1,0.14143112]
[1768852215995,0.87928654,3220.4,3219.1,0.14143112]
[1768852216195,0.13963795,3220.6,3219.1,0.14143112]
[1768852216401,0.87917066,3220.5,3219.1,0.14143112]
[1768852216603,0.87917066,3220.4,3219.1,0.14143112]
[1768852216802,0.13963795,3220.6,3219.1,0.14143112]
[1768852217110,0.87912865,3220.5,3219.1,0.14143112]
[1768852217304,0.87912865,3220.4,3219.1,0.14143112]
[1768852217503,0.13963795,3220.6,3219.1,0.14143112]
[1768852217708,0.87899315,3220.5,3219.1,0.14143112]
[1768852217907,0.87899315,3220.4,3219.1,0.14143112]
[1768852218102,0.13963795,3220.6,3219.1,0.14143112]
[1768852218299,0.87899317,3220.5,3219.1,0.14143112]
[1768852218499,0.87899317,3220.4,3219.1,0.14143112]
[1768852218798,0.13963795,3220.6,3219.1,0.14143112]
[1768852218995,0.87887664,3220.5,3219.1,0.14143112]
[1768852219201,0.87887664,3220.4,3219.1,0.14143112]
[1768852219402,0.15532,3220.8,3219.1,0.14143112]
[1768852219601,2.61877643,3220.7,3219.1,0.14143112]
[1768852219905,0.87877643,3220.6,3219.1,0.14143112]
[1768852220108,0.87877643,3220.5,3219.1,0.14143112]
[1768852220407,1.74,3220.7,3219.1,0.14143112]
[1768852220608,0.87869486,3220.6,3219.1,0.14143112]
[1768852220810,0.87869486,3220.5,3219.1,0.14143112]
[1768852221008,1.74,3220.7,3219.1,0.14143112]
[1768852221308,0.878695,3220.6,3219.1,0.14143112]
[1768852221508,0.878695,3220.5,3219.1,0.14143112]
[1768852221711,1.74,3220.7,3219.1,0.14143112]
[1768852222011,0.87862764,3220.6,3219.1,0.14143112]
[1768852222213,0.87862764,3220.5,3219.1,0.14143112]
[1768852222413,1.74,3220.7,3219.1,0.14143112]
[1768852222612,0.87857398,3220.6,3219.1,0.14143112]
[1768852222912,0.87857398,3220.5,3219.1,0.14143112]
[1768852223113,1.74,3220.7,3219.1,0.14143112]
[1768852223306,0.87855867,3220.6,3219.1,0.14143112]
[1768852223504,0.87855867,3220.5,3219.1,0.14143112]
[1768852223707,1.74,3220.7,3219.1,0.14143112]
[1768852223907,0.87866544,3220.6,3219.1,0.14143112]
[1768852224108,0.87866544,3220.5,3219.1,0.14143112]
[1768852224311,1.89532,3220.8,3219.1,0.14143112]
[1768852224515,0.87863569,3220.7,3219.1,0.14143112]
[1768852224722,0.87863569,3220.6,3219.1,0.14143112]
[1768852224918,0.87863569,3220.5,3219.1,0.14143112]
[1768852225121,1.89532,3220.8,3219.1,0.14143112]
[1768852225426,0.87863431,3220.7,3219.1,0.14143112]
[1768852225719,0.87863431,3220.6,3219.1,0.14143112]
[1768852225925,0.87863431,3220.5,3219.1,0.14143112]
[1768852226225,1.89532,3220.8,3219.1,0.14143112]
[1768852226425,0.87861414,3220.7,3219.1,0.14143112]
[1768852226727,0.13770472,3220.5,3219.1,0.0028742]
[1768852226920,0.87861414,3220.4,3219.1,0.0028742]
[1768852228029,1.01631886,3220.4,3219.1,0.0028742]
[1768852228227,0.87861414,3220.3,3219.1,0.0028742]
[1768852228524,0.13770472,3220.2,3219.1,0.0028742]
[1768852228728,1.01631886,3220.1,3219.1,0.0028742]
[1768852228928,0.13770472,3220.1,3219.1,0.0028742]
[1768852231535,0.15534,3220.4,3219.1,0.0028742]
[1768852231833,0.87883686,3220.3,3219.1,0.0028742]
[1768852232039,0.87883686,3220.2,3219.1,0.0028742]
[1768852232331,0.87883686,3220.1,3219.1,0.0028742]
[1768852232533,0.15534,3220.4,3219.1,0.0028742]
[1768852232734,0.87887994,3220.3,3219.1,0.0028742]
[1768852233031,0.87887994,3220.2,3219.1,0.0028742]
[1768852233232,0.87887994,3220.1,3219.1,0.0028742]
[1768852233530,0.15534,3220.4,3219.1,0.0028742]
[1768852233732,0.87895698,3220.3,3219.1,0.0028742]
[1768852233921,0.87895698,3220.2,3219.1,0.0028742]
[1768852234126,0.15534,3220.4,3219.1,0.0028742]
[1768852234326,0.87893447,3220.3,3219.1,0.13551504]
[1768852234526,0.87893447,3220.2,3219.1,0.13551504]
[1768852234727,3.41125492,3220.8,3219.1,0.13551504]
[1768852234928,0.87905452,3220.7,3219.1,0.13551504]
[1768852235127,0.87905452,3220.6,3219.1,0.13551504]
[1768852235329,0.87905452,3220.5,3219.1,0.13551504]
[1768852235526,0.87905452,3220.4,3219.1,0.13551504]
[1768852235727,0.87905452,3220.3,3219.1,0.13551504]
[1768852235923,0.87905452,3220.2,3219.1,0.13551504]
[1768852236137,1.67125492,3220.7,3219.1,0.13551504]
[1768852236434,2.55048965,3220.7,3219.1,0.13551504]
[1768852238238,1.67125492,3220.6,3219.1,0.13551504]
[1768852241539,0.29151675,3220.5,3219.1,0.13551504]
[1768852241741,0.87923473,3220.4,3219.1,0.13551504]
[1768852241940,0.87923473,3220.3,3219.1,0.13551504]
[1768852242140,0.87923473,3220.2,3219.1,0.13551504]
[1768852242336,0.87923473,3220.1,3219.1,0.13551504]
[1768852242541,1.67125492,3220.6,3219.1,0.13551504]
[1768852249251,0.29154951,3220.5,3219.1,0.13551504]
[1768852249450,0.88071874,3220.4,3219.1,0.13551504]
[1768852249746,0.88071874,3220.3,3219.1,0.13551504]
[1768852249950,0.88071874,3220.2,3219.1,0.13551504]
[1768852250140,0.88071874,3220.1,3219.1,0.13551504]
[1768852250343,0.88071874,3220.0,3219.1,0.13551504]
[1768852250642,1.67125492,3220.6,3219.1,0.13551504]
[1768852250842,0.29157279,3220.5,3219.1,0.13551504]
[1768852251044,0.88092661,3220.4,3219.1,0.13551504]
[1768852251242,0.88092661,3220.3,3219.1,0.0028742]
[1768852255654,0.88092661,3220.3,3219.1,0.14356358]
[1768852255854,0.88092661,3220.2,3219.1,0.14356358]
[1768852256048,0.88092661,3220.1,3219.1,0.14356358]
[1768852256352,0.88092661,3220.0,3219.1,0.14356358]
[1768852256650,1.67125492,3220.5,3219.1,0.14356358]
[1768852256851,2.55373651,3220.5,3219.1,0.14356358]
[1768852258255,0.2917377,3220.4,3219.1,0.14356358]
[1768852258457,0.88248159,3220.3,3219.1,0.14356358]
[1768852258654,0.88248159,3220.2,3219.1,0.14356358]
[1768852258956,0.88248159,3220.1,3219.1,0.14356358]
[1768852259257,0.88248159,3220.0,3219.1,0.14356358]
[1768852259456,0.88248159,3219.9,3219.1,0.14356358]
[1768852259658,1.67125492,3220.5,3219.1,0.14356358]
[1768852259857,0.29177222,3220.4,3219.1,0.14356358]
[1768852260059,2.55385943,3220.5,3219.1,0.14356358]
[1768852260060,0.88260451,3220.3,3219.1,0.14356358]
[1768852260258,0.88260451,3220.2,3219.1,0.14356358]
[1768852260459,0.88260451,3220.1,3219.1,0.14356358]
[1768852260758,0.88260451,3220.0,3219.1,0.14356358]
[1768852260959,0.88260451,3219.9,3219.1,0.14356358]
[1768852261166,1.80166561,3220.5,3219.1,0.0028742]
[1768852261360,1.17449358,3220.4,3219.1,0.0028742]
[1768852261657,0.88270348,3220.3,3219.1,0.0028742]
[1768852261859,0.88270348,3220.2,3219.1,0.0028742]
[1768852262051,0.88270348,3220.1,3219.1,0.0028742]
[1768852262249,0.88270348,3220.0,3219.1,0.0028742]
[1768852262450,0.88270348,3219.9,3219.1,0.0028742]
[1768852262648,1.67125492,3220.4,3219.1,0.1582742]
[1768852262853,0.8827646,3220.3,3219.1,0.1582742]
[1768852263046,0.8827646,3220.2,3219.1,0.1582742]
[1768852263249,0.8827646,3220.1,3219.1,0.1582742]
[1768852263555,0.8827646,3220.0,3219.1,0.1582742]
[1768852263759,0.8827646,3219.9,3219.1,0.1582742]
[1768852263951,1.80166561,3220.5,3219.1,0.1582742]
[1768852264146,1.17468707,3220.4,3219.1,0.1582742]
[1768852264352,0.88284172,3220.3,3219.1,0.1582742]
[1768852264552,0.88284172,3220.2,3219.1,0.1582742]
[1768852264748,0.88284172,3220.1,3219.1,0.1582742]
[1768852264952,0.88284172,3220.0,3219.1,0.1582742]
[1768852265154,0.88284172,3219.9,3219.1,0.1582742]
[1768852265348,1.80166561,3220.5,3219.1,0.1582742]
[1768852265562,1.17469469,3220.4,3219.1,0.1582742]
[1768852265865,0.88284756,3220.3,3219.1,0.1582742]
[1768852266058,0.88284756,3220.2,3219.1,0.29896358]
[1768852266365,0.88284756,3220.1,3219.2,0.14068938]
[1768852266553,0.88284756,3220.0,3219.2,0.14068938]
[1768852266754,1.82658492,3220.6,3219.2,0.14068938]
[1768852266955,0.88282451,3220.5,3219.2,0.14068938]
[1768852267156,0.88282451,3220.4,3219.2,0.14068938]
[1768852267359,0.88282451,3220.3,3219.2,0.14068938]
[1768852267562,0.88282451,3220.2,3219.2,0.14068938]
[1768852267861,0.88282451,3220.1,3219.2,0.14068938]
[1768852268065,1.67125492,3220.7,3219.2,0.14068938]
[1768852268265,0.29179765,3220.6,3219.2,0.14068938]
[1768852268467,0.88270448,3220.5,3219.2,0.14068938]
[1768852268671,0.88270448,3220.4,3219.2,0.14068938]
[1768852268967,0.88270448,3220.3,3219.2,0.14068938]
[1768852269266,1.67125492,3220.7,3219.2,0.14068938]
[1768852269466,2.55373449,3220.7,3219.2,0.14068938]
[1768852273772,0.13041069,3220.6,3219.1,0.1582742]
[1768852273972,0.88247957,3220.5,3219.1,0.1582742]
[1768852274170,0.88247957,3220.4,3219.1,0.1582742]
[1768852274363,0.88247957,3220.3,3219.1,0.1582742]
[1768852274561,0.88247957,3220.2,3219.1,0.1582742]
[1768852274765,0.13041069,3220.6,3219.1,0.1582742]
[1768852275061,0.88224475,3220.5,3219.1,0.1582742]
[1768852275261,0.88224475,3220.4,3219.1,0.1582742]
[1768852275462,0.88224475,3220.3,3219.1,0.1582742]
[1768852275762,0.88224475,3220.2,3219.1,0.1582742]
[1768852275964,0.13041069,3220.6,3219.1,0.1582742]
[1768852276172,0.88221944,3220.5,3219.1,0.1582742]
[1768852276374,0.88221944,3220.4,3219.1,0.1582742]
[1768852276576,0.88221944,3220.3,3219.1,0.1582742]
[1768852276872,0.88221944,3220.2,3219.1,0.1582742]
[1768852277072,0.13041069,3220.6,3219.1,0.1582742]